bitfinex/quotes_ETHUSD_20251230
["timestamp","ask_amount","ask_price","bid_price","bid_amount"]
[1767091653014,2.3112,2984.0,2983.3,2.4524]
[1767091653232,2.3112,2983.7,2982.9,2.4524]
[1767091653611,2.3112,2983.5,2982.9,2.4524]
[1767091653942,2.3112,2983.7,2982.9,2.4524]
[1767091654142,2.3112,2983.5,2982.9,2.4534]
[1767091654455,2.3112,2983.5,2983.1,2.4524]
[1767091654456,3.1912,2983.5,2983.1,2.4524]
[1767091654645,2.3112,2983.5,2983.1,2.4524]
[1767091656137,2.3112,2983.5,2982.7,8.26183173]
[1767091656338,2.3112,2983.5,2982.7,9.66863156]
[1767091656638,2.3112,2983.5,2982.8,3.35255212]
[1767091657221,2.3112,2983.5,2982.8,5.80495212]
[1767091659451,2.3112,2983.5,2982.9,2.4524]
[1767091660840,2.3112,2983.5,2983.0,2.4524]
[1767091663433,2.3112,2983.5,2982.8,3.35350221]
[1767091663614,2.3112,2983.5,2982.8,4.65582842]
[1767091665260,2.3112,2983.5,2982.9,2.4524]
[1767091666985,2.3112,2983.5,2983.0,2.433]
[1767091668266,2.3132,2983.5,2983.0,2.433]
[1767091674501,2.2872,2984.1,2983.4,2.433]
[1767091674699,2.2872,2984.0,2983.6,2.433]
[1767091675810,0.0200894,2983.9,2982.8,0.001]
[1767091675974,2.2872,2983.0,2982.6,2.433]
[1767091676174,2.2872,2983.0,2982.6,0.433]
[1767091676509,0.88,2983.1,2982.6,0.433]
[1767091676873,3.1672,2983.1,2982.6,0.433]
[1767091677074,3.1672,2983.1,2982.8,0.001]
[1767091677676,2.2872,2983.1,2982.8,0.001]
[1767091680209,2.2872,2983.1,2982.2,2.4804]
[1767091680210,2.60392,2983.1,2982.2,2.4804]
[1767091680389,2.3618,2982.7,2982.1,2.4804]
[1767091680593,2.3618,2982.5,2982.1,2.4804]
[1767091680788,2.3618,2982.5,2981.7,3.35469586]
[1767091680789,2.3618,2982.5,2982.0,2.4814]
[1767091681790,0.88,2982.5,2982.0,2.4814]
[1767091682083,2.3618,2982.4,2982.0,2.4814]
[1767091682506,0.6,2982.3,2982.0,2.4814]
[1767091685024,2.9618,2982.3,2982.0,2.4814]
[1767091685422,2.9618,2982.3,2981.8,3.35364926]
[1767091685423,4.33735468,2982.3,2981.3,0.001]
[1767091685625,2.3618,2981.7,2981.3,0.001]
[1767091685825,2.3618,2981.5,2981.1,2.47082951]
[1767091686028,2.3618,2981.5,2980.7,2.4804]
[1767091686029,4.90921737,2981.3,2980.7,2.4804]
[1767091686333,0.32418,2981.5,2980.7,2.4804]
[1767091686334,2.3618,2981.2,2980.7,2.4804]
[1767091686490,0.88,2981.1,2980.7,2.4804]
[1767091687298,0.88,2981.1,2980.8,2.4804]
[1767091689197,2.3618,2981.2,2980.8,5.83512764]
[1767091689393,2.3618,2981.2,2980.8,2.4804]
[1767091689394,0.88,2981.1,2980.8,2.4804]
[1767091689899,3.2418,2981.1,2980.6,2.4804]
[1767091690201,3.2418,2981.1,2980.8,0.001]
[1767091690411,3.2438,2981.1,2980.8,0.001]
[1767091695340,0.882,2981.1,2980.8,0.001]
[1767091695512,2.3618,2980.8,2980.4,0.001]
[1767091697135,0.0200894,2981.0,2980.2,0.001]
[1767091697136,2.3939,2980.6,2980.2,0.001]
[1767091697334,2.3939,2980.5,2980.2,0.001]
[1767091697665,2.3939,2980.4,2980.0,2.3362]
[1767091699540,2.3939,2980.4,2980.0,5.69185021]
[1767091699943,2.3939,2980.4,2980.0,2.3362]
[1767091701843,2.72129,2980.4,2979.8,2.3362]
[1767091702043,2.72129,2980.4,2979.6,0.001]
[1767091702044,2.3939,2980.3,2979.6,5.69334039]
[1767091702242,2.3939,2980.1,2979.6,2.3372]
[1767091702543,2.3939,2980.0,2979.7,2.3362]
[1767091702847,2.3939,2980.0,2979.7,5.69223757]
[1767091703017,2.3939,2980.0,2979.7,2.3362]
[1767091703433,2.3939,2980.0,2979.7,5.69223424]
[1767091703632,2.3939,2979.9,2979.6,0.001]
[1767091704344,2.3939,2979.9,2979.6,3.35715511]
[1767091705444,3.2739,2980.1,2979.7,5.69223584]
[1767091706433,3.2739,2980.1,2979.8,2.3362]
[1767091708232,0.32739,2980.4,2979.6,2.37076155]
[1767091708233,3.2749,2980.0,2979.6,2.37076155]
[1767091708734,3.2749,2980.0,2979.6,2.3372]
[1767091710433,0.881,2980.0,2979.7,2.3362]
[1767091710837,0.32739,2980.4,2979.7,2.3362]
[1767091711042,2.3939,2980.4,2979.7,2.3362]
[1767091711226,2.42742989,2980.3,2979.7,2.3362]
[1767091712325,0.0200894,2980.8,2979.9,2.3362]
[1767091712526,0.0200894,2980.8,2980.2,2.3362]
[1767091712527,2.3939,2980.8,2980.2,2.3362]
[1767091712841,2.3939,2980.8,2980.4,2.3362]
[1767091713630,4.91121737,2981.1,2979.9,2.3362]
[1767091713631,2.3939,2980.6,2979.9,2.3362]
[1767091713831,2.3939,2980.6,2980.0,2.3362]
[1767091714342,2.3939,2980.6,2980.1,3.35559209]
[1767091714522,2.3939,2980.6,2980.2,2.3362]
[1767091714719,2.3939,2980.6,2980.1,3.35559209]
[1767091715252,2.3939,2980.6,2980.1,6.68465126]
[1767091718051,2.3939,2980.6,2980.2,2.3362]
[1767091718255,2.3939,2981.0,2980.2,2.3362]
[1767091719522,0.002,2980.6,2980.4,2.3362]
[1767091719738,0.002,2980.6,2980.4,2.90535669]
[1767091722632,2.3959,2980.6,2980.2,2.3362]
[1767091723630,2.3959,2980.6,2980.2,5.69166041]
[1767091735063,2.3959,2980.6,2980.2,2.3362]
[1767091735478,2.3959,2980.6,2980.0,0.001]
[1767091736284,2.3959,2980.6,2980.0,1.7359]
[1767091736488,2.63549,2980.6,2980.0,1.7359]
[1767091736792,2.63549,2980.6,2980.0,5.09158758]
[1767091736989,2.3959,2980.6,2980.0,5.09158758]
[1767091737698,2.3959,2980.6,2979.8,3.35590433]
[1767091737699,2.2749,2980.4,2979.6,1.7369]
[1767091738884,2.2749,2980.4,2979.6,5.09304437]
[1767091740398,2.2749,2980.4,2980.0,0.001]
[1767091740695,2.313,2980.3,2980.0,0.001]
[1767091742884,2.313,2980.3,2979.6,1.7369]
[1767091743289,2.313,2980.2,2979.5,0.001]
[1767091743595,2.313,2980.2,2979.6,5.09304322]
[1767091744378,2.313,2979.9,2979.6,5.09304322]
[1767091744583,2.313,2979.9,2979.6,1.7369]
[1767091745595,2.313,2980.2,2979.8,1.1369]
[1767091750677,2.313,2980.4,2979.9,1.17045817]
[1767091750877,2.313,2980.4,2979.9,1.1369]
[1767091751077,2.315,2980.6,2980.1,1.1369]
[1767091751301,2.315,2980.6,2980.3,1.1369]
[1767091751505,2.315,2980.6,2980.0,1.1369]
[1767091752978,3.35475733,2980.9,2980.0,1.1369]
[1767091753181,0.0200894,2982.0,2981.6,0.595]
[1767091753182,2.313,2982.0,2981.6,0.595]
[1767091753380,2.315,2982.5,2982.4,1.81176805]
[1767091753579,2.315,2982.5,2981.8,2.2679]
[1767091753822,2.315,2982.5,2982.0,2.2679]
[1767091754179,2.315,2982.5,2982.1,0.881]
[1767091754511,2.315,2982.5,2981.0,2.2679]
[1767091754512,2.313,2981.6,2981.0,2.2679]
[1767091754815,2.313,2981.6,2981.0,0.07411602]
[1767091755801,2.313,2981.6,2981.1,1.7702]
[1767091758386,2.313,2981.6,2981.1,0.881]
[1767091759617,2.313,2981.6,2981.1,1.7702]
[1767091760020,2.313,2981.6,2981.1,0.8892]
[1767091760232,2.313,2981.6,2981.1,1.7702]
[1767091761625,2.315,2981.6,2981.1,1.7702]
[1767091764338,2.315,2981.6,2981.2,0.8892]
[1767091764633,2.315,2981.6,2981.2,0.79493774]
[1767091767324,2.315,2981.6,2981.1,0.881]
[1767091767830,2.315,2981.6,2981.1,1.676]
[1767091768035,2.315,2981.6,2981.2,0.795]
[1767091775115,0.2315,2981.5,2981.0,0.001]
[1767091775440,2.3483,2981.4,2981.0,0.001]
[1767091775830,2.3483,2981.4,2981.0,1.677]
[1767091776459,2.3483,2981.4,2981.0,0.001]
[1767091776740,2.3483,2981.4,2980.4,5.03220353]
[1767091776741,2.3683894,2981.3,2980.4,5.03220353]
[1767091776929,2.3683894,2981.3,2980.5,3.35513041]
[1767091777133,2.3483,2981.1,2980.5,3.35513041]
[1767091777315,2.3483,2981.1,2980.5,5.03213041]
[1767091777926,2.3483,2981.1,2980.7,1.677]
[1767091779542,2.3483,2981.4,2980.8,1.677]
[1767091779745,2.67133,2981.4,2980.8,1.677]
[1767091780127,2.67133,2981.4,2981.0,1.677]
[1767091780722,2.67133,2981.4,2980.7,1.677]
[1767091780917,2.67133,2981.4,2980.8,1.677]
[1767091782920,2.67133,2981.4,2980.6,5.03196018]
[1767091782921,2.67333,2981.4,2980.6,5.03196018]
[1767091783119,2.67333,2981.4,2980.7,1.677]
[1767091783320,2.3483,2981.2,2980.7,1.677]
[1767091783646,2.3483,2981.2,2980.6,5.03202208]
[1767091783827,2.3483,2981.2,2980.6,1.677]
[1767091784624,2.3483,2981.2,2980.5,0.001]
[1767091785031,2.3483,2981.2,2980.5,3.35613957]
[1767091785627,2.3483,2981.2,2980.3,3.3553544]
[1767091785925,2.3483,2981.2,2980.2,0.03355479]
[1767091786327,2.3483,2981.2,2980.4,2.3833]
[1767091787555,2.3483,2981.2,2980.5,5.73844175]
[1767091788558,0.002,2982.6,2981.3,2.3833]
[1767091788778,0.0200894,2982.2,2981.5,2.3833]
[1767091788945,0.0200894,2982.2,2981.6,2.3833]
[1767091788946,0.0200894,2982.0,2981.6,2.3833]
[1767091789145,0.0200894,2982.4,2981.6,2.3833]
[1767091789354,0.0200894,2982.6,2982.0,2.3833]
[1767091789531,0.0200894,2982.6,2982.2,2.3833]
[1767091789858,0.0200894,2982.6,2982.3,2.3833]
[1767091791552,1.0618,2982.5,2982.0,5.73674398]
[1767091791755,1.0618,2982.5,2982.0,10.65427544]
[1767091792054,0.0200894,2982.4,2982.0,2.3833]
[1767091792262,1.0818894,2982.4,2982.0,2.3833]
[1767091792550,0.002,2982.2,2982.0,2.3833]
[1767091792757,1.0818894,2982.4,2982.0,2.3833]
[1767091793142,1.0818894,2982.4,2982.0,5.73674148]
[1767091793343,0.0200894,2982.6,2982.1,7.30083146]
[1767091793528,0.0200894,2982.6,2982.2,2.3833]
[1767091794740,0.0200894,2982.6,2982.0,2.3833]
[1767091794741,0.0200894,2982.4,2982.0,2.3833]
[1767091798964,0.0200894,2982.2,2981.8,5.70781938]
[1767091799262,0.0200894,2982.2,2981.9,3.35355855]
[1767091799457,0.0200894,2982.4,2982.0,3.35343537]
[1767091799666,0.0200894,2982.4,2982.0,5.70763537]
[1767091799831,0.0220894,2982.4,2982.0,5.70763537]
[1767091800464,0.0200894,2982.2,2982.0,2.3542]
[1767091800663,0.0200894,2982.2,2981.8,2.3542]
[1767091800841,0.0200894,2981.8,2981.3,5.70844143]
[1767091801042,0.0200894,2981.8,2981.4,2.3542]
[1767091801365,0.0200894,2981.6,2981.4,2.3542]
[1767091801565,0.0200894,2981.8,2981.4,2.92504414]
[1767091801763,0.9000894,2982.2,2981.7,4.91753146]
[1767091801970,0.0200894,2982.0,2981.6,2.3542]
[1767091802150,0.0200894,2982.0,2981.5,4.91753146]
[1767091802350,0.0200894,2982.0,2981.6,2.3542]
[1767091803571,0.0200894,2982.0,2981.6,7.27173146]
[1767091803744,0.0200894,2982.0,2981.6,4.91753146]
[1767091803946,0.0200894,2982.0,2981.7,2.3542]
[1767091805741,0.0200894,2982.0,2981.2,2.3542]
[1767091805742,0.0200894,2981.6,2981.2,2.3542]
[1767091805943,0.0200894,2981.6,2981.2,0.519788]
[1767091805944,0.0200894,2981.4,2981.2,0.519788]
[1767091806269,1.8545894,2981.4,2981.0,2.3542]
[1767091806448,1.8545894,2981.4,2981.0,5.708759]
[1767091807645,1.8545894,2981.4,2981.0,2.3542]
[1767091809966,1.8345,2981.1,2980.6,2.3542]
[1767091810149,2.7345894,2981.0,2980.6,5.70917941]
[1767091810350,2.7145,2981.0,2980.7,5.74263661]
[1767091810552,0.88,2981.0,2980.8,5.70897839]
[1767091810749,0.88,2981.0,2980.8,5.74252643]
[1767091811160,1.8545894,2981.2,2980.8,5.74252643]
[1767091811968,1.8545894,2981.2,2980.9,2.3542]
[1767091812177,0.0200894,2981.2,2980.9,2.3542]
[1767091812882,2.2748894,2981.2,2980.9,2.3542]
[1767091813380,2.2748894,2981.2,2980.7,8.2723933]
[1767091813681,2.2748894,2981.2,2980.7,4.91753146]
[1767091813880,2.2748894,2981.2,2980.7,8.05788264]
[1767091814257,2.2748894,2981.2,2980.8,0.03354804]
[1767091815288,0.0200894,2981.2,2980.9,2.3542]
[1767091824462,0.0200894,2981.0,2980.8,0.001]
[1767091824664,0.0200894,2981.0,2980.9,0.001]
[1767091824889,2.3124894,2980.8,2980.5,2.4789]
[1767091825265,0.0200894,2980.6,2980.5,0.001]
[1767091825466,2.3124894,2980.6,2979.8,0.45029084]
[1767091825767,2.3124894,2980.6,2979.9,2.4779]
[1767091825768,2.3124894,2980.4,2979.9,2.4779]
[1767091825991,0.0200894,2980.2,2979.9,2.4779]
[1767091826190,2.2924,2980.3,2979.9,3.35579565]
[1767091826366,2.2924,2980.3,2980.0,2.4779]
[1767091826989,2.3124894,2980.2,2979.8,0.001]
[1767091827164,2.2924,2980.2,2979.8,0.001]
[1767091827366,2.2924,2980.2,2979.8,2.4789]
[1767091830891,0.0200894,2980.4,2979.8,3.35692902]
[1767091831099,2.2924,2980.5,2980.1,2.4779]
[1767091831287,2.3124894,2980.8,2980.3,2.4779]
[1767091831467,2.2924,2980.8,2980.3,2.4779]
[1767091831899,0.0200894,2980.7,2980.3,2.4779]
[1767091832107,2.3124894,2980.7,2980.3,2.4779]
[1767091832591,2.2924,2980.7,2980.3,2.4779]
[1767091840410,2.2944,2980.7,2980.3,2.4779]
[1767091843209,2.2944,2980.7,2980.0,3.35664972]
[1767091843388,2.2944,2980.7,2980.0,7.36184517]
[1767091843995,0.0200894,2980.4,2979.7,0.001]
[1767091844193,0.0200894,2980.2,2979.7,0.001]
[1767091844809,0.0200894,2979.8,2979.7,0.001]
[1767091845513,0.0200894,2980.0,2979.7,0.001]
[1767091845983,0.0200894,2979.8,2979.7,0.001]
[1767091848824,2.4939894,2979.8,2979.4,1e-08]
[1767091852102,0.0200894,2979.8,2979.4,1e-08]
[1767091853130,2.4939894,2979.8,2979.4,1e-08]
[1767091854306,0.0200894,2979.9,2979.4,1e-08]
[1767091854508,2.4739,2980.0,2979.4,1e-08]
[1767091854707,2.4939894,2979.9,2979.4,1e-08]
[1767091855722,2.4939894,2979.9,2979.4,0.00100001]
[1767091856442,0.0200894,2979.7,2979.4,0.00100001]
[1767091856645,2.4939894,2979.7,2979.4,0.00100001]
[1767091858632,2.5043894,2979.9,2979.5,2.4626]
[1767091861033,2.4843,2979.8,2979.5,2.4626]
[1767091861707,2.4843,2979.9,2979.5,2.4626]
[1767091861931,6.74090161,2980.2,2979.5,2.4626]
[1767091862235,7.30615802,2980.2,2979.5,2.4626]
[1767091862533,2.4843,2980.1,2979.5,2.4626]
[1767091862733,0.0200894,2980.0,2979.5,2.4626]
[1767091863124,2.5043894,2980.0,2979.5,2.4626]
[1767091863325,5.86013965,2980.0,2979.5,2.4626]
[1767091863743,2.5043894,2980.0,2979.5,2.4626]
[1767091864045,0.002,2979.9,2979.5,2.4626]
[1767091865533,2.4863,2979.9,2979.5,2.4626]
[1767091866130,2.4843,2979.7,2979.3,0.001]
[1767091866440,2.4825,2979.5,2979.2,0.001]
[1767091867943,2.4825,2979.5,2979.2,2.4636]
[1767091869846,2.4825,2979.7,2979.2,2.4636]
[1767091870438,2.4825,2979.7,2979.2,1.7636]
[1767091870618,2.4825,2979.7,2979.3,2.4626]
[1767091871033,0.002,2979.9,2979.3,2.49616493]
[1767091871233,0.0200894,2980.2,2979.6,2.4626]
[1767091871449,0.0200894,2980.2,2979.6,2.49616155]
[1767091871656,2.5043894,2980.2,2979.6,2.49616155]
[1767091871863,3.09237956,2980.2,2979.6,2.49616155]
[1767091872033,2.4843,2980.2,2979.6,2.4626]
[1767091872231,3.37540113,2980.4,2979.6,2.4626]
[1767091872433,2.5043894,2980.2,2979.6,2.4626]
[1767091872647,2.5043894,2979.8,2979.3,2.4626]
[1767091872843,2.5043894,2979.6,2979.3,2.4626]
[1767091873046,2.5043894,2979.6,2979.4,0.001]
[1767091873260,0.0200894,2979.6,2979.4,0.001]
[1767091873561,0.0200894,2979.6,2979.4,2.4636]
[1767091873977,2.5043894,2979.8,2979.4,2.4636]
[1767091874175,0.0200894,2980.0,2979.4,2.4636]
[1767091874176,0.0200894,2980.0,2979.5,2.4626]
[1767091874833,0.0200894,2980.0,2979.4,0.001]
[1767091875124,0.0220894,2980.2,2979.5,2.4626]
[1767091877370,0.0220894,2980.2,2979.6,2.4583]
[1767091877568,3.37539098,2980.4,2979.5,3.35626104]
[1767091877739,0.0200894,2980.2,2979.6,2.4583]
[1767091878877,2.3820894,2980.2,2979.6,2.4583]
[1767091880450,2.3840894,2980.2,2979.6,2.4583]
[1767091881667,2.3840894,2980.2,2979.4,0.001]
[1767091881668,2.362,2979.9,2979.4,0.001]
[1767091882058,2.362,2979.7,2979.4,0.001]
[1767091882268,2.362,2979.7,2979.4,2.4593]
[1767091882658,0.0200894,2979.8,2979.4,2.4593]
[1767091883890,2.3820894,2979.8,2979.4,2.4593]
[1767091884782,2.362,2979.8,2979.4,2.4593]
[1767091887582,2.3820894,2979.7,2979.4,2.4593]
[1767091887783,2.362,2979.5,2979.1,2.4593]
[1767091888781,2.362,2979.5,2979.1,5.81600257]
[1767091888959,2.362,2979.5,2979.1,3.35770257]
[1767091889162,2.362,2979.7,2979.2,2.4583]
[1767091890499,0.0200894,2979.6,2979.2,2.4583]
[1767091890700,2.362,2979.5,2979.1,0.001]
[1767091891404,2.362,2979.5,2979.1,2.4593]
[1767091892017,2.362,2979.5,2979.1,5.81601379]
[1767091892179,2.362,2979.5,2979.1,2.4593]
[1767091892505,2.362,2979.5,2979.1,5.8159937]
[1767091892975,2.362,2979.5,2979.1,2.4593]
[1767091893385,0.0200894,2979.2,2978.6,0.001]
[1767091893680,2.362,2978.5,2978.2,0.001]
[1767091893999,2.362,2978.5,2978.1,2.4583]
[1767091894181,2.3820894,2978.4,2978.1,2.4583]
[1767091895202,2.3820894,2978.4,2977.5,2.4583]
[1767091895203,2.362,2978.1,2977.5,2.4583]
[1767091896277,0.0200894,2978.2,2977.5,2.4583]
[1767091896278,0.0200894,2978.2,2977.6,2.4583]
[1767091897192,0.0200894,2978.4,2977.8,4.9183492]
[1767091897392,0.0200894,2978.6,2978.0,2.4583]
[1767091897589,5.71921099,2978.7,2978.0,2.4583]
[1767091897590,2.3820894,2978.7,2978.0,2.4593]
[1767091897798,2.362,2978.6,2978.0,2.4593]
[1767091898112,3.37731901,2978.7,2978.1,2.4583]
[1767091898298,0.0200894,2978.5,2978.1,2.4583]
[1767091898500,2.3820894,2978.3,2975.9,0.05]
[1767091898703,2.3820894,2978.1,2977.3,2.4583]
[1767091898888,2.3820894,2978.1,2977.4,2.4583]
[1767091899995,2.362,2978.1,2977.5,4.92702234]
[1767091900181,2.362,2978.1,2977.4,0.03358635]
[1767091900182,2.3820894,2978.5,2977.8,2.4583]
[1767091900389,0.881,2978.4,2978.0,2.4583]
[1767091900588,0.881,2978.4,2978.2,2.4583]
[1767091902299,0.881,2978.4,2978.2,2.38215093]
[1767091902300,0.86738152,2978.4,2978.2,2.38215093]
[1767091902804,0.881,2978.5,2978.2,2.38215093]
[1767091903011,0.0200894,2978.7,2978.2,2.49187732]
[1767091903194,2.3820894,2978.7,2978.2,2.49187732]
[1767091903817,2.3820894,2978.7,2978.2,2.4583]
[1767091904014,2.362,2978.7,2978.2,2.4583]
[1767091904521,0.0200894,2978.6,2978.2,2.4583]
[1767091905700,0.0200894,2978.4,2978.2,2.4583]
[1767091906134,2.4546894,2978.4,2978.1,0.001]
[1767091906309,2.4346,2978.4,2978.1,2.4768]
[1767091907118,2.4546894,2978.6,2978.2,2.4758]
[1767091907723,8.30405572,2978.9,2978.4,2.4758]
[1767091907724,0.0200894,2978.9,2978.4,2.4758]
[1767091907913,2.4546894,2978.9,2978.4,2.4758]
[1767091909624,0.0200894,2978.7,2978.4,2.4758]
[1767091909797,0.0200894,2978.7,2978.1,0.001]
[1767091909798,2.4546894,2978.7,2978.1,3.35883078]
[1767091909999,2.4546894,2978.7,2978.2,2.81168308]
[1767091910826,0.0200894,2978.5,2978.2,2.4758]
[1767091911221,2.4546894,2978.5,2978.2,2.4758]
[1767091911402,2.4346,2978.5,2978.2,2.4758]
[1767091911733,2.4546894,2978.4,2978.1,0.001]
[1767091912037,2.4546894,2978.4,2978.1,2.4768]
[1767091913535,0.0220894,2978.9,2978.2,2.4758]
[1767091913694,0.002,2978.9,2978.3,2.5093762]
[1767091913895,2.4346,2978.8,2978.3,2.5093762]
[1767091914095,2.4346,2978.8,2978.3,2.4758]
[1767091914624,2.4346,2978.6,2978.1,3.0603843]
[1767091915330,2.4346,2978.6,2978.2,2.4758]
[1767091915928,2.4546894,2978.5,2978.1,0.001]
[1767091916404,2.4546894,2978.5,2978.0,0.001]
[1767091916605,2.4546894,2978.5,2978.0,2.4768]
[1767091916807,0.0200894,2978.5,2978.1,2.4758]
[1767091917406,2.4546894,2978.5,2978.1,2.4758]
[1767091918126,2.70216728,2978.5,2978.1,2.4758]
[1767091918500,2.70216728,2978.5,2978.0,0.001]
[1767091918501,2.4556,2978.4,2978.0,0.001]
[1767091918728,2.4556,2978.2,2978.0,0.001]
[1767091919345,2.4556,2978.4,2978.0,2.3164]
[1767091919830,2.4556,2978.4,2978.0,2.26285875]
[1767091920617,2.4556,2978.1,2977.6,2.3154]
[1767091920837,2.4756894,2978.1,2977.6,2.3154]
[1767091921637,2.4756894,2978.1,2977.7,3.35829007]
[1767091921869,2.4756894,2978.1,2977.7,2.3154]
[1767091922146,2.4756894,2978.1,2977.8,2.3154]
[1767091922147,2.4556,2978.1,2977.8,2.3154]
[1767091923121,2.4556,2978.1,2977.1,2.3154]
[1767091923433,2.4556,2978.1,2977.5,2.3154]
[1767091923836,2.4556,2978.1,2977.6,2.3154]
[1767091924220,2.4556,2978.0,2977.6,2.3154]
[1767091924724,2.4556,2978.0,2977.6,5.67380539]
[1767091925852,2.4556,2978.0,2977.7,2.3154]
[1767091926549,2.4556,2978.0,2977.7,5.67367697]
[1767091926848,2.4556,2978.2,2977.7,5.67367697]
[1767091927055,2.4556,2978.2,2977.8,2.3154]
[1767091927867,2.4556,2978.2,2977.9,0.03358071]
[1767091928041,3.69701673,2978.4,2977.9,2.34898071]
[1767091928241,2.4556,2978.6,2977.9,2.34898071]
[1767091928442,0.0200894,2978.5,2978.0,2.3154]
[1767091929575,0.0220894,2978.5,2978.0,2.3154]
[1767091930854,0.002,2978.5,2978.2,2.3154]
[1767091931173,0.002,2978.5,2977.6,0.001]
[1767091931174,2.4556,2978.0,2977.6,0.001]
[1767091931375,0.0200894,2978.1,2977.3,1.6859]
[1767091931376,2.4556,2977.8,2977.3,1.6859]
[1767091931575,2.4556,2977.8,2977.4,5.04446635]
[1767091931869,0.0200894,2977.9,2977.2,4.17130223]
[1767091931870,2.4556,2978.0,2977.5,3.35850368]
[1767091932067,2.4556,2978.0,2977.6,1.6859]
[1767091932391,0.0200894,2978.3,2977.7,1.6859]
[1767091932547,0.0200894,2978.3,2977.7,1.71948296]
[1767091932855,0.0220894,2978.5,2977.8,1.6859]
[1767091933055,0.0220894,2978.5,2978.0,1.6859]
[1767091934049,0.002,2978.5,2978.0,1.6859]
[1767091934249,2.4556,2978.6,2977.9,1.6839]
[1767091934448,2.4556,2978.6,2978.0,1.6839]
[1767091935075,0.0220894,2978.7,2978.0,1.6839]
[1767091935287,2.4756894,2978.5,2978.0,1.6839]
[1767091935791,2.4756894,2978.3,2977.5,3.35843384]
[1767091935974,2.72526728,2978.3,2977.6,1.6839]
[1767091936692,2.72526728,2978.3,2977.1,1.6839]
[1767091936693,2.3109894,2977.7,2977.1,1.6839]
[1767091937502,2.3109894,2977.7,2977.0,3.36005296]
[1767091937503,2.3109894,2977.7,2977.2,1.6839]
[1767091940175,2.3109894,2977.7,2977.0,2.54392956]
[1767091940495,2.3109894,2977.7,2977.1,0.59031175]
[1767091940663,0.0200894,2977.5,2976.8,0.001]
[1767091940862,2.3109894,2977.5,2976.8,0.001]
[1767091941101,2.3109894,2977.5,2976.8,3.36028165]
[1767091941583,2.3109894,2977.5,2976.8,0.001]
[1767091942395,2.3109894,2977.5,2976.8,0.67644451]
[1767091943565,2.3109894,2977.5,2976.8,4.03565392]
[1767091944163,2.3109894,2977.5,2976.8,0.67644451]
[1767091944391,2.3109894,2977.5,2976.8,0.001]
[1767091944689,2.2909,2977.5,2976.8,3.39390063]
[1767091945794,0.0200894,2977.4,2976.8,3.39390063]
[1767091946090,2.2909,2977.4,2976.8,3.39390063]
[1767091946291,2.3109894,2977.6,2976.9,0.67533175]
[1767091946600,2.3109894,2977.6,2977.0,0.03359086]
[1767091946789,0.002,2977.5,2977.0,0.03359086]
[1767091947293,0.0200894,2977.4,2976.8,3.36020229]
[1767091947499,0.0200894,2977.4,2976.8,4.06585675]
[1767091948394,0.002,2977.5,2976.8,7.42516876]
[1767091948574,0.002,2977.5,2976.8,7.39157564]
[1767091949198,2.3109894,2977.0,2976.8,0.001]
[1767091951522,2.3109894,2977.0,2976.6,0.001]
[1767091952020,2.2909,2977.0,2976.6,0.002]
[1767091952320,2.2909,2977.0,2976.7,0.001]
[1767091952725,0.0200894,2977.2,2976.7,0.001]
[1767091952925,2.3109894,2977.2,2976.7,0.001]
[1767091953906,0.0200894,2977.0,2976.6,0.001]
[1767091954230,2.3109894,2977.0,2976.6,0.002]
[1767091956428,2.3109894,2977.0,2975.9,0.003]
[1767091956429,2.2909,2976.7,2975.9,0.003]
[1767091956602,2.2909,2976.7,2976.1,0.003]
[1767091958111,0.0200894,2977.0,2975.8,0.0346044]
[1767091958317,2.3109894,2977.2,2975.9,6.72065592]
[1767091958555,2.3109894,2977.2,2976.0,5.97644254]
[1767091958920,2.2909,2976.9,2976.0,1.04517061]
[1767091959320,0.0200894,2977.0,2976.0,1.04517061]
[1767091960140,0.0200894,2977.0,2975.9,6.72065592]
[1767091960325,0.0200894,2977.0,2976.1,6.72020428]
[1767091960528,0.0200894,2977.0,2976.2,0.67538064]
[1767091961247,2.3109894,2977.0,2976.2,0.67538064]
[1767091963049,2.3109894,2977.0,2976.2,4.03526296]
[1767091963231,0.0200894,2976.8,2976.2,3.35998519]
[1767091963629,2.3109894,2976.8,2976.2,3.35998519]
[1767091963824,2.3109894,2976.8,2976.0,3.36118588]
[1767091963825,2.3109894,2976.8,2976.0,0.001]
[1767091964034,2.52199894,2976.7,2976.0,0.03460215]
[1767091964241,2.52199894,2976.7,2976.2,3.35995619]
[1767091964242,2.2909,2976.7,2976.2,3.35995619]
[1767091964439,2.2909,2976.7,2976.1,3.36006321]
[1767091964823,2.3109894,2976.6,2976.0,0.001]
[1767091966303,0.0200894,2976.3,2976.0,0.001]
[1767091966516,2.3583,2976.0,2975.6,0.001]
[1767091966700,2.3783894,2975.9,2975.4,0.002]
[1767091966904,2.3783894,2975.9,2975.4,0.001]
[1767091966905,2.3583,2975.9,2975.4,0.001]
[1767091967200,0.23984788,2975.9,2975.4,0.002]
[1767091967516,2.3583,2976.1,2975.4,0.002]
[1767091968401,4.93167279,2976.1,2975.4,0.002]
[1767091968578,2.3583,2976.0,2975.4,0.002]
[1767091970217,2.3583,2976.0,2974.9,0.002]
[1767091970713,2.3583,2976.0,2975.1,0.002]
[1767091970915,2.3583,2976.0,2975.3,0.002]
[1767091971916,2.3583,2976.0,2975.5,0.002]
[1767091972303,2.3583,2976.0,2975.2,0.002]
[1767091972304,6.04254505,2976.0,2975.2,0.002]
[1767091972502,2.3583,2975.9,2975.0,0.003]
[1767091973089,2.3783894,2975.9,2975.0,0.003]
[1767091973791,2.3583,2975.9,2975.0,0.003]
[1767091975322,2.3783894,2975.9,2975.0,0.003]